bitfinex/quotes_ETHUSD_20250403
["timestamp","ask_amount","ask_price","bid_price","bid_amount"]
[1743694645365,6.154,1776.1,1775.9,5.63074]
[1743694645564,6.154,1776.1,1776.0,5.63053]
[1743694646038,6.154,1776.1,1775.8,5.63123]
[1743694646239,6.154,1776.1,1775.8,11.905593]
[1743694646439,6.154,1776.1,1775.9,5.63089]
[1743694646861,6.154,1776.1,1775.8,5.63122]
[1743694647252,6.154,1776.1,1775.7,5.63142]
[1743694647555,11.78431,1776.1,1775.7,5.63142]
[1743694647735,13.525756,1776.1,1775.7,5.63142]
[1743694647935,19.156246,1776.1,1775.7,5.63142]
[1743694648136,0.8261,1776.0,1775.8,11.26231]
[1743694648372,0.8261,1776.0,1775.8,5.63115]
[1743694648672,6.153,1776.2,1776.1,5.63029]
[1743694648976,6.153,1776.3,1776.2,5.62987]
[1743694649148,46.16079,1776.6,1776.2,5.62987]
[1743694649149,41.3628,1776.6,1776.2,5.62987]
[1743694649488,41.3628,1776.6,1776.1,5.63029]
[1743694649489,6.153,1776.5,1776.1,11.26058]
[1743694649683,11.78212,1776.5,1776.1,5.63029]
[1743694649855,6.153,1776.5,1776.1,11.26044]
[1743694650245,11.78204,1776.5,1776.1,5.63015]
[1743694650641,6.153,1776.5,1776.2,5.62987]
[1743694650990,6.153,1776.5,1776.1,5.68648609]
[1743694651197,6.153,1776.5,1776.2,11.82827861]
[1743694651648,6.153,1776.5,1776.2,6.19836861]
[1743694651993,41.3628,1776.6,1776.3,5.62953]
[1743694652202,0.05,1776.9,1776.3,0.7909]
[1743694652344,0.05,1776.9,1776.6,5.62871]
[1743694652688,0.05,1776.9,1776.3,12.05009]
[1743694652689,5.62831,1776.8,1776.3,12.05009]
[1743694652892,6.44852,1776.7,1776.3,5.62956]
[1743694653097,6.152,1776.6,1776.4,5.62926]
[1743694653760,6.152,1776.6,1776.3,5.62958]
[1743694654093,6.8492,1776.6,1776.3,5.62958]
[1743694654244,6.152,1776.6,1776.3,5.62958]
[1743694654445,6.152,1776.6,1776.2,5.62993]
[1743694654664,5.62907,1776.5,1776.1,5.63025]
[1743694655270,11.78085,1776.6,1776.1,5.63021]
[1743694655459,17.40976,1776.6,1776.1,5.63021]
[1743694655786,7.370026,1776.5,1776.1,5.63021]
[1743694656188,1.740976,1776.5,1776.1,11.26039]
[1743694656389,0.8268,1776.3,1775.7,6.40666]
[1743694656560,6.45658,1776.3,1775.8,11.2623]
[1743694656760,5.63,1776.2,1775.8,5.63115]
[1743694656961,6.151,1776.1,1775.8,5.63115]
[1743694657644,6.151,1776.1,1775.9,5.63087]
[1743694657801,6.151,1776.1,1775.8,5.63115]
[1743694658258,6.151,1776.1,1775.9,5.63084]
[1743694658964,6.151,1776.1,1776.0,5.63063]
[1743694660304,0.7648,1776.5,1776.1,0.8252]
[1743694660587,52.33347,1776.7,1776.5,5.62885]
[1743694660588,40.535,1776.7,1776.5,5.62885]
[1743694660755,40.535,1776.7,1776.6,5.62872]
[1743694661797,0.05,1776.9,1776.7,5.62815]
[1743694662099,0.05,1776.9,1776.8,5.68436746]
[1743694662403,0.05,1776.9,1776.8,5.68436425]
[1743694662697,0.05,1776.9,1776.8,5.62809]
[1743694663599,0.05,1776.9,1776.8,6.38879]
[1743694664575,0.05,1776.9,1776.8,9.38879]
[1743694664771,0.05,1776.9,1776.8,11.4967655]
[1743694665214,1e-05,1776.9,1776.8,15.27592674]
[1743694665374,1e-05,1776.9,1776.8,15.45180113]
[1743694665712,1e-05,1776.9,1776.8,21.97004381]
[1743694666070,0.05,1777.9,1777.8,5.62492]
[1743694666267,0.05,1777.9,1777.8,6.955312]
[1743694666498,0.05,1777.9,1777.8,6.187412]
[1743694666702,0.05,1777.9,1777.7,5.62511]
[1743694666999,6.198,1777.9,1777.6,11.73555]
[1743694667200,6.198,1777.9,1777.7,5.62506]
[1743694667402,0.05,1777.9,1777.7,5.62506]
[1743694667609,0.05,1777.9,1777.8,5.62492]
[1743694668398,0.05,1777.9,1777.8,6.749918]
[1743694668572,0.05,1777.9,1777.8,5.62492]
[1743694668771,0.05,1777.9,1777.8,5.68116312]
[1743694668977,0.05,1777.9,1777.8,5.62492]
[1743694672807,0.05,1777.9,1777.8,8.68115811]
[1743694673013,0.05,1777.9,1777.8,10.60728266]
[1743694673184,0.05,1777.9,1777.8,10.55104455]
[1743694673384,0.05,1777.9,1777.8,10.60728049]
[1743694673585,0.05,1777.9,1777.8,7.13147181]
[1743694673911,0.05,1777.9,1777.8,5.62492]
[1743694675484,6.193,1777.9,1777.7,5.62506]
[1743694676092,6.193,1777.9,1777.4,5.62619]
[1743694676421,6.193,1777.9,1777.6,5.62545]
[1743694676626,6.89113,1777.9,1777.7,5.6252]
[1743694676815,6.193,1777.9,1777.7,5.6252]
[1743694677122,6.193,1777.9,1777.6,11.2509]
[1743694678221,6.193,1777.9,1777.6,5.62545]
[1743694678415,6.193,1777.9,1777.5,11.25154]
[1743694678614,6.193,1777.9,1777.5,5.62572]
[1743694678926,0.7581,1777.8,1777.5,5.62572]
[1743694680220,12.00827,1777.8,1777.3,11.25296]
[1743694680401,6.38306,1777.8,1777.4,5.62614]
[1743694680821,5.62535,1777.7,1777.3,5.62648]
[1743694681022,6.826201,1777.7,1777.3,5.6264]
[1743694681199,6.38308,1777.8,1777.4,5.62602]
[1743694681528,0.7581,1777.8,1777.2,5.68305119]
[1743694681824,0.7581,1777.8,1777.6,5.62529]
[1743694682199,6.38304,1777.8,1777.4,5.62615]
[1743694682399,0.7581,1777.8,1777.5,5.62585]
[1743694682600,0.7581,1777.8,1777.5,5.62584]
[1743694683006,0.7581,1777.8,1777.5,5.62573]
[1743694683333,0.7581,1777.8,1777.5,11.25146]
[1743694683510,0.7581,1777.8,1777.5,5.62573]
[1743694684644,0.7581,1777.8,1777.6,5.62544]
[1743694684941,6.141,1777.7,1777.6,5.62543]
[1743694687905,0.7734,1777.6,1777.4,5.62607]
[1743694688307,0.7734,1777.6,1777.4,11.25212]
[1743694688621,0.7734,1777.6,1777.4,5.62605]
[1743694688818,6.39915,1777.6,1777.2,5.6267]
[1743694689019,6.39915,1777.6,1777.0,5.62745]
[1743694689020,2.027415,1777.6,1777.0,5.62745]
[1743694689341,0.8038,1777.3,1777.1,5.62704]
[1743694689628,6.14,1777.2,1777.1,5.62704]
[1743694690309,6.14,1777.2,1777.0,5.62732]
[1743694690957,6.14,1777.2,1777.0,5.62743]
[1743694691433,6.14,1777.2,1776.9,5.62761]
[1743694691635,6.14,1777.2,1776.8,12.8141355]
[1743694691932,11.76684,1777.2,1776.8,7.1858955]
[1743694692135,0.7541,1777.1,1776.7,5.62837]
[1743694692336,0.7541,1776.7,1776.4,5.6293]
[1743694692542,6.139,1776.6,1776.3,5.62964]
[1743694693163,6.139,1776.6,1776.2,5.62998]
[1743694693324,6.139,1776.6,1776.2,12.996867]
[1743694693504,6.139,1776.6,1776.3,5.62967]
[1743694694010,0.7541,1776.5,1776.2,7.366887]
[1743694694221,0.7541,1776.5,1776.2,1.737027]
[1743694694829,0.7541,1776.5,1775.9,5.63077]
[1743694695031,5.62946,1776.4,1776.0,5.63063]
[1743694695807,0.7541,1776.5,1776.1,5.6301]
[1743694696006,6.14,1776.4,1776.3,5.62965]
[1743694696207,6.14,1776.4,1776.3,6.192615]
[1743694696440,5.62813,1776.8,1776.3,6.192615]
[1743694696441,0.8209,1776.8,1776.5,5.62886]
[1743694696667,6.14,1776.7,1776.5,11.25774]
[1743694696853,6.14,1776.7,1776.5,5.62886]
[1743694697056,6.14,1776.7,1776.4,11.2585]
[1743694697214,6.139,1776.6,1776.5,5.62901]
[1743694697943,6.139,1776.6,1776.4,6.8113365]
[1743694698320,6.139,1776.6,1776.3,0.562965]
[1743694698517,6.139,1776.6,1776.4,5.62904]
[1743694698716,6.139,1776.6,1776.5,5.62904]
[1743694700862,6.139,1776.6,1776.4,5.62904]
[1743694701717,6.139,1776.6,1776.5,5.62904]
[1743694702659,0.8281,1777.0,1776.6,5.62872]
[1743694702947,6.139,1777.1,1776.7,5.62835]
[1743694703160,11.76645,1777.1,1776.7,5.62835]
[1743694703316,11.76634,1777.1,1776.7,5.62835]
[1743694703514,0.7796,1777.0,1776.5,5.62892]
[1743694703847,12.03492,1777.0,1776.6,5.62866]
[1743694704017,5.62799,1776.9,1776.5,11.25785]
[1743694705466,0.77,1776.7,1776.5,5.62901]
[1743694705759,6.138,1776.6,1776.5,5.62904]
[1743694706350,6.138,1776.6,1776.4,11.25845]
[1743694706544,6.138,1776.6,1776.5,5.62904]
[1743694707462,6.40492,1777.2,1776.8,5.62789]
[1743694707663,6.138,1777.1,1776.8,5.62789]
[1743694707867,6.138,1777.1,1776.8,11.25587]
[1743694708228,0.778,1777.2,1776.8,5.62789]
[1743694708433,6.138,1777.0,1776.8,5.62789]
[1743694709042,6.138,1777.0,1776.9,5.62777]
[1743694709252,6.138,1777.0,1776.8,5.62789]
[1743694709978,0.8282,1776.9,1776.6,5.62866]
[1743694710156,0.8282,1776.9,1776.4,11.73928]
[1743694710157,5.62826,1776.8,1776.4,11.73928]
[1743694710362,5.6281,1776.8,1776.5,5.62892]
[1743694710552,5.6281,1776.8,1776.4,11.25852]
[1743694710951,0.8282,1776.9,1776.5,5.62897]
[1743694711150,7.87560042,1776.9,1776.5,11.25784]
[1743694711453,7.87560042,1776.9,1776.6,5.62872]
[1743694711850,13.50355042,1776.9,1776.5,5.62891]
[1743694712050,7.87560042,1776.9,1776.5,11.25782]
[1743694712279,7.87560042,1776.9,1776.5,5.62891]
[1743694712581,7.87560042,1776.9,1776.6,5.62867]
[1743694712937,0.8282,1776.9,1776.6,5.62867]
[1743694713142,5.62684,1777.2,1776.9,5.62757]
[1743694713143,0.8216,1777.2,1776.9,5.62757]
[1743694713367,6.137,1777.1,1776.8,5.62796]
[1743694713579,6.137,1777.1,1776.8,11.25594]
[1743694713742,6.137,1777.1,1776.9,5.62777]
[1743694714345,6.137,1777.1,1776.8,5.62796]
[1743694714756,7.958241,1777.1,1776.5,6.46207]
[1743694715044,6.4446,1776.8,1776.4,11.25852]
[1743694715239,6.4446,1776.8,1776.5,5.62891]
[1743694715240,6.136,1776.7,1776.5,5.62891]
[1743694715435,6.136,1776.7,1776.4,11.25852]
[1743694715669,6.136,1776.7,1776.4,5.62926]
[1743694715867,6.136,1776.7,1776.4,11.25851]
[1743694716069,6.136,1776.7,1776.5,5.6289]
[1743694716270,6.136,1776.7,1776.6,5.62872]
[1743694717800,0.7898,1777.2,1776.9,5.62757]
[1743694718006,6.136,1777.0,1776.9,5.62757]
[1743694718474,6.136,1777.0,1776.8,5.62803]
[1743694718898,6.136,1777.0,1776.8,5.62796]
[1743694719080,6.136,1777.0,1776.9,5.62777]
[1743694719705,6.136,1777.0,1776.6,5.62867]
[1743694719706,17.39134,1777.0,1776.6,5.62863]
[1743694719904,0.8005,1776.9,1776.7,5.62824]
[1743694720669,6.135,1776.9,1776.8,5.62809]
[1743694722474,6.135,1776.9,1776.7,5.80414771]
[1743694722813,0.7707,1776.8,1776.7,0.17590771]
[1743694723520,6.135,1776.9,1776.6,5.62868]
[1743694723725,6.135,1776.9,1776.5,5.62897]
[1743694723726,12.54349,1776.9,1776.5,5.62897]
[1743694723882,6.9157,1776.9,1776.6,5.62856]
[1743694724086,6.135,1776.9,1776.7,5.6283]
[1743694724297,0.8273,1777.1,1776.8,5.62809]
[1743694724585,6.134,1777.0,1776.9,5.62772]
[1743694724780,6.134,1777.0,1776.8,11.25606]
[1743694724994,6.134,1777.0,1776.8,5.62797]
[1743694725299,11.76172,1777.0,1776.7,0.56283]
[1743694725502,11.76172,1777.0,1776.6,5.62862]
[1743694725826,6.134,1777.0,1776.7,5.62827]
[1743694726027,6.134,1777.0,1776.7,11.25653]
[1743694726431,6.134,1777.0,1776.7,5.62826]
[1743694726633,6.134,1777.0,1776.7,11.819386]
[1743694726811,6.134,1777.0,1776.8,5.62808]
[1743694727011,11.76147,1777.0,1776.7,6.191086]
[1743694727212,6.134,1777.0,1776.7,6.191086]
[1743694727417,6.134,1777.0,1776.7,11.819386]
[1743694727995,6.134,1777.0,1776.7,6.191086]
[1743694728195,6.134,1777.0,1776.7,11.819386]
[1743694728425,6.134,1777.0,1776.7,6.191086]
[1743694729227,6.134,1777.0,1776.8,5.62798]
[1743694730023,40.526,1777.2,1776.9,5.62763]
[1743694730200,6.132,1777.1,1777.0,5.62746]
[1743694730805,6.132,1777.1,1776.8,6.8097856]
[1743694731009,6.132,1777.1,1776.8,11.25585]
[1743694731527,6.132,1777.1,1776.9,5.62772]
[1743694731693,6.132,1777.1,1777.0,6.190232]
[1743694731898,6.132,1777.2,1777.1,5.62707]
[1743694732725,0.7656,1777.3,1777.1,11.25412]
[1743694732949,6.131,1777.4,1777.2,5.62672]
[1743694733151,6.131,1777.4,1777.3,5.62651]
[1743694733354,6.131,1777.4,1777.3,6.751833]
[1743694733731,5.62657,1777.3,1777.0,6.943322]
[1743694734049,0.7616,1777.2,1777.0,5.62739]
[1743694734218,0.7616,1777.2,1777.0,5.62731]
[1743694734761,6.3886,1777.2,1776.9,0.17589136]
[1743694734950,5.62714,1777.1,1776.9,0.17589136]
[1743694735530,5.62714,1777.1,1776.7,11.25665]
[1743694736450,5.6279,1776.9,1776.6,0.17589136]
[1743694736652,0.7656,1776.8,1776.6,0.17589136]
[1743694736843,0.7656,1776.8,1776.6,5.80460136]
[1743694737022,0.7656,1776.8,1776.6,5.80447136]
[1743694737218,6.13,1777.0,1776.6,1.3192385]
[1743694737419,6.13,1777.0,1776.6,0.97709136]
[1743694737753,6.13,1777.0,1776.8,5.62788]
[1743694738363,6.13,1777.0,1776.7,11.25668]
[1743694738660,6.13,1777.0,1776.7,11.25653]
[1743694738829,5.62779,1776.9,1776.5,6.03945675]
[1743694739035,11.25583,1776.9,1776.5,6.84663553]
[1743694739259,6.41929,1776.8,1776.5,5.6289]
[1743694739458,0.7912,1776.8,1776.5,11.25778]
[1743694739756,0.7912,1776.8,1776.5,5.62888]
[1743694739955,0.7912,1776.8,1776.5,11.2578]
[1743694740157,6.129,1776.9,1776.7,5.62815]
[1743694740723,6.9334,1777.2,1776.9,5.62753]
[1743694740926,6.9334,1777.2,1776.8,5.62794]
[1743694741148,5.62723,1777.1,1776.8,5.62794]
[1743694741353,0.8044,1777.0,1776.7,5.62831]
[1743694741557,0.8044,1777.0,1776.7,11.819451]
[1743694741857,6.8899,1777.2,1776.7,1.383031]
[1743694742030,5.62734,1777.1,1776.7,5.62827]
[1743694742223,15.92369129,1777.2,1776.6,0.41046656]
[1743694742532,6.42268,1776.8,1776.6,0.41046656]
[1743694742738,11.75741,1776.7,1776.6,0.41046656]
[1743694742959,11.75741,1776.7,1776.3,5.62953]
[1743694743162,5.62882,1776.6,1776.3,6.268913]
[1743694743539,5.62882,1776.6,1776.1,0.17595786]
[1743694743540,5.62977,1776.3,1776.1,0.17595786]
[1743694743725,12.54727,1776.3,1776.1,0.17595786]
[1743694744333,12.54727,1776.3,1775.9,5.6308]
[1743694744334,5.62999,1776.2,1775.9,5.80689786]
[1743694744561,18.17722,1776.3,1775.9,5.80689786]
[1743694744765,12.54727,1776.3,1775.9,5.80689786]
[1743694745059,5.63045,1776.1,1775.9,0.17595786]
[1743694745262,5.63063,1776.0,1775.9,0.17595786]
[1743694745473,7.525538,1776.0,1775.9,0.17595786]
[1743694745770,5.63179,1775.7,1775.3,5.63283]
[1743694745972,12.53272,1775.6,1775.2,5.63313]
[1743694746137,5.63255,1775.4,1775.1,0.22595786]
[1743694746764,5.63316,1775.2,1775.1,0.22595786]
[1743694746967,11.26597,1775.3,1775.1,0.05]
[1743694747272,3.7683,1775.4,1775.1,5.68347]
[1743694747475,6.129,1775.5,1775.3,5.63268]
[1743694748185,6.129,1775.5,1775.3,11.26533]
[1743694748473,6.129,1775.5,1775.4,5.63253]
[1743694748854,6.129,1775.5,1775.3,11.26532]
[1743694749052,6.129,1775.5,1775.2,5.63312]
[1743694749254,13.012381,1775.5,1775.1,5.68329]
[1743694749577,0.8007,1775.3,1775.1,0.05]
[1743694750375,0.8007,1775.3,1775.1,5.6833]
[1743694750566,6.43358,1775.3,1775.1,0.05]
[1743694750872,0.8007,1775.3,1775.1,0.05]
[1743694751074,0.7809,1775.5,1775.1,0.67470127]
[1743694751277,6.129,1775.4,1775.3,5.63285]
[1743694752485,12.52952,1775.6,1775.1,7.040335]
[1743694752657,12.52952,1775.6,1775.2,5.63314]
[1743694752658,5.63234,1775.5,1775.2,5.63314]
[1743694752852,7.448526,1775.5,1775.2,5.63314]
[1743694753259,5.63255,1775.4,1775.1,0.05]
[1743694753482,11.26528,1775.4,1775.1,0.05]
[1743694753689,5.63255,1775.4,1775.1,0.05]
[1743694753848,7.448436,1775.5,1775.1,11.31665]
[1743694754164,0.7448436,1775.4,1775.1,5.68328]
[1743694754480,6.8975,1775.6,1775.3,5.63273]
[1743694754647,12.52943,1775.6,1775.3,5.63273]
[1743694755165,6.13,1775.6,1775.4,5.63226]
[1743694755482,6.13,1775.6,1775.4,5.63242]
[1743694755687,6.13,1775.6,1775.3,11.26551]
[1743694755887,12.93805,1775.6,1775.1,0.05]
[1743694756050,11.76189,1775.6,1775.2,11.26608]
[1743694756251,6.13,1775.6,1775.3,5.63281]
[1743694756563,6.13,1775.6,1775.5,5.63221]
[1743694756757,6.129,1775.6,1775.5,5.63221]
[1743694757278,46.661,1775.8,1775.6,5.63159]
[1743694757682,46.661,1775.8,1775.7,5.63158]
[1743694757975,52.29227,1775.8,1775.3,6.41092]
[1743694758185,0.8063,1775.6,1775.3,5.63274]
[1743694758357,0.8063,1775.6,1775.4,5.63252]
[1743694758541,0.8063,1775.6,1775.3,5.63274]
[1743694758742,0.8063,1775.6,1775.4,5.63242]
[1743694758973,0.8063,1775.6,1775.4,11.26478]
[1743694759182,0.8063,1775.6,1775.4,5.63236]
[1743694759386,0.8063,1775.6,1775.5,5.63221]
[1743694759678,46.661,1775.8,1775.5,5.63208]
[1743694759879,40.532,1775.8,1775.7,5.63158]
[1743694760052,46.661,1775.8,1775.6,11.26363]
[1743694760250,46.661,1775.8,1775.6,5.63175]
[1743694760776,46.661,1775.8,1775.5,11.2643]
[1743694760984,52.29227,1775.8,1775.4,5.63243]
[1743694761172,46.661,1775.8,1775.5,5.63203]
[1743694761370,46.661,1775.8,1775.6,5.63185]
[1743694761575,46.661,1775.8,1775.7,5.63158]
[1743694761881,46.661,1775.8,1775.6,5.63175]
[1743694762087,6.129,1775.8,1775.6,5.63175]
[1743694762263,6.129,1775.8,1775.6,5.63185]
[1743694762851,12.06025,1776.2,1775.8,5.63102]
[1743694763184,12.06025,1776.2,1775.7,5.63153]
[1743694763185,17.38894,1776.1,1775.7,5.63153]
[1743694763388,11.75832,1776.1,1775.7,11.26296]
[1743694763689,11.75832,1776.1,1775.8,5.63121]
[1743694763854,11.75832,1776.1,1775.7,5.63143]
[1743694764055,13.35715712,1776.1,1775.8,5.63123]
[1743694764255,7.72681712,1776.1,1775.8,5.6311]
[1743694764456,7.72681712,1776.1,1775.8,11.26223]
[1743694764681,7.72681712,1776.1,1775.8,5.6311]
[1743694764861,13.35712712,1776.1,1775.8,5.6311]
[1743694765290,11.75831,1776.1,1775.7,5.63142]
[1743694765455,6.128,1776.1,1775.9,5.63089]
[1743694765656,11.75832,1776.1,1775.8,5.63116]
[1743694765952,11.75837,1776.1,1775.8,5.63115]
[1743694766163,6.128,1776.1,1775.8,5.63115]
[1743694766377,11.75846,1776.1,1775.8,5.63115]
[1743694766594,11.75846,1776.1,1775.7,5.63152]
[1743694766794,11.75846,1776.1,1775.7,5.63128]
[1743694767156,11.75846,1776.1,1775.8,5.6312]
[1743694767796,6.128,1776.1,1775.8,11.26231]
[1743694768288,17.38883,1776.1,1775.7,11.26298]
[1743694768657,6.128,1776.1,1775.8,5.63113]
[1743694769058,0.8,1776.2,1776.0,5.6304]
[1743694769266,6.126,1776.1,1776.0,5.6304]
[1743694769461,40.554,1776.3,1776.2,5.62999]
[1743694769668,46.68,1776.3,1776.2,5.62999]
[1743694769869,40.554,1776.3,1776.2,5.62999]
[1743694770074,46.68,1776.3,1776.2,6.756006]
[1743694771763,6.126,1776.3,1776.2,6.756006]
[1743694772393,6.125,1776.4,1776.2,1.126016]
[1743694772575,5.62815,1776.8,1776.3,6.41464]
[1743694772576,3.805,1776.8,1776.3,6.41464]
[1743694772776,6.125,1776.7,1776.5,5.62882]
[1743694773194,6.125,1776.7,1776.6,5.62872]
[1743694773993,6.125,1776.7,1776.6,6.38842]
[1743694774166,6.125,1777.0,1776.9,5.62762]
[1743694774561,0.7532,1777.4,1777.1,5.62714]
[1743694774767,41.3012,1777.6,1777.0,0.8312]
[1743694775097,6.124,1777.5,1777.3,5.62633]
[1743694775613,6.124,1777.5,1777.2,5.62682]
[1743694775967,6.124,1777.5,1777.2,11.25348]
[1743694776366,6.124,1777.5,1777.3,5.62641]
[1743694776605,41.3012,1777.6,1777.4,5.62607]
[1743694776897,6.122,1777.5,1777.4,5.62607]
[1743694779314,6.122,1777.5,1777.3,5.6265]
[1743694779812,6.122,1777.5,1777.2,5.62679]
[1743694780013,6.122,1777.5,1777.2,11.25345]
[1743694780310,6.122,1777.5,1777.2,11.25337]
[1743694780503,6.122,1777.5,1777.2,11.25331]
[1743694780700,11.74802,1777.5,1777.1,5.62713]
[1743694781020,17.37418,1777.5,1777.1,5.62713]
[1743694781217,11.74802,1777.5,1777.2,5.62682]
[1743694781719,11.74802,1777.5,1777.1,5.62695]
[1743694781891,17.37414,1777.5,1777.1,5.62695]
[1743694782096,11.74802,1777.5,1777.1,5.62695]
[1743694782297,5.62624,1777.4,1777.0,12.08604]
[1743694782498,5.62624,1777.4,1777.1,5.6271]
[1743694782824,17.37412,1777.5,1777.1,5.6271]
[1743694783011,11.74802,1777.5,1777.1,5.6271]
[1743694783393,11.74802,1777.5,1777.1,5.62698]
[1743694783896,6.122,1777.5,1777.1,0.05627063]
[1743694784100,41.3012,1777.6,1777.3,5.62646]
[1743694784304,6.119,1777.5,1777.3,5.62646]
[1743694784825,6.119,1777.5,1777.4,5.62619]
[1743694785117,6.119,1777.5,1777.3,5.62633]
[1743694785519,6.119,1777.5,1777.2,5.62679]
[1743694785830,6.42974,1777.4,1777.0,6.39681]
[1743694786118,0.8034,1777.4,1777.0,0.7695]
[1743694786292,6.119,1777.5,1777.3,5.62638]
[1743694786492,11.74512,1777.5,1777.1,11.25412]
[1743694786692,6.119,1777.5,1777.1,5.62701]
[1743694786911,11.74503,1777.5,1777.1,6.266661]
[1743694787292,11.74503,1777.5,1777.1,5.62701]
[1743694787511,5.62622,1777.4,1777.1,5.62701]
[1743694788318,17.37105,1777.5,1777.1,5.62698]
[1743694788508,17.37106,1777.5,1777.1,5.62698]
[1743694788712,11.74499,1777.5,1777.1,11.25396]
[1743694788907,11.74499,1777.5,1777.1,5.62698]
[1743694789324,17.37108,1777.5,1777.1,5.62698]
[1743694789616,17.37105,1777.5,1777.1,11.25397]
[1743694789924,11.74499,1777.5,1777.2,5.62678]
[1743694790421,46.96291,1777.6,1777.2,6.752106]
[1743694790595,6.116,1777.4,1777.3,5.62645]
[1743694792421,46.663,1777.6,1777.5,5.62587]
[1743694792608,9.47269,1777.9,1777.3,5.68273577]
[1743694792609,0.8479,1777.9,1777.3,5.68273577]
[1743694792813,0.8479,1777.9,1777.2,5.62667]
[1743694792814,6.115,1777.8,1777.5,5.62559]
[1743694793000,6.115,1777.8,1777.5,11.2513]
[1743694793199,11.74002,1777.8,1777.5,6.8335]
[1743694793436,6.115,1777.8,1777.5,12.45924]
[1743694793845,6.115,1777.7,1777.6,5.62554]
[1743694794041,6.115,1777.7,1777.5,12.45924]
[1743694794346,6.115,1777.7,1777.6,5.62556]
[1743694795514,6.115,1777.7,1777.5,6.8335]
[1743694795721,6.115,1777.7,1777.4,5.62614]
[1743694795722,12.35189,1777.7,1777.4,5.62614]
[1743694795922,0.795,1777.5,1777.3,11.25284]
[1743694796263,0.795,1777.5,1777.4,5.62619]
[1743694796434,12.76488735,1777.7,1777.4,5.62608]
[1743694796435,6.8707,1777.7,1777.4,5.62608]
[1743694796606,6.8707,1777.7,1777.5,5.62573]
[1743694796807,6.8707,1777.7,1777.5,11.25148]
[1743694797036,6.115,1777.7,1777.6,5.62556]
[1743694797407,6.115,1777.7,1777.5,6.750878]
[1743694797629,6.115,1777.7,1777.6,5.62556]
[1743694798523,6.163,1777.9,1777.8,5.62492]
[1743694798710,0.05,1777.9,1777.8,5.62492]
[1743694798909,6.163,1777.9,1777.8,5.62492]
[1743694799336,6.163,1777.9,1777.7,5.6251]
[1743694799514,6.163,1777.9,1777.8,5.62492]
[1743694799836,6.163,1777.9,1777.6,5.62553]
[1743694800040,12.966394,1777.9,1777.5,11.25157]
[1743694800341,0.7817,1777.8,1777.3,0.7711]
[1743694800634,6.40679,1777.8,1777.4,5.62597]
[1743694800838,5.62538,1777.7,1777.4,5.62597]
[1743694801036,5.62538,1777.7,1777.3,5.6265]
[1743694801037,5.6256,1777.6,1777.3,5.6265]
[1743694801243,6.112,1777.5,1777.3,5.62637]
[1743694801409,6.112,1777.5,1777.3,11.25276]
[1743694801609,6.112,1777.5,1777.4,5.62619]
[1743694802228,6.112,1777.5,1777.3,5.62637]
[1743694802810,6.112,1777.5,1777.2,11.42943906]
[1743694803044,6.112,1777.5,1777.3,11.2528]
[1743694803338,6.112,1777.5,1777.2,5.80260906]
[1743694803339,6.9083,1777.5,1777.2,5.80260906]
[1743694803551,12.53424,1777.5,1777.2,6.21418693]
[1743694803862,6.9083,1777.5,1777.3,5.62645]
[1743694804860,6.9083,1777.5,1777.3,5.62648]
[1743694805065,6.9083,1777.5,1777.2,6.03820787]
[1743694805355,12.53443,1777.5,1777.2,0.41157787]
[1743694805722,19.976504,1777.5,1777.2,0.41157787]
[1743694806071,6.112,1777.5,1777.3,5.6264]
[1743694806271,6.112,1777.5,1777.2,5.62665]
[1743694806568,6.112,1777.5,1777.1,5.62707]
[1743694806772,6.112,1777.5,1777.1,11.25406]
[1743694806773,11.73805,1777.5,1777.1,11.25406]
[1743694806929,0.7772,1777.4,1777.1,11.25398]
[1743694807124,0.7772,1777.4,1777.1,11.42986446]
[1743694807346,0.7772,1777.4,1777.1,5.80287446]
[1743694807851,0.7772,1777.4,1777.1,11.42987446]
[1743694808071,0.7772,1777.4,1777.1,5.80287446]
[1743694808269,6.40341,1777.4,1777.1,5.80287446]
[1743694809066,0.7772,1777.4,1777.2,5.62682]
[1743694809364,0.7772,1777.4,1777.1,5.80289446]
[1743694809539,0.7772,1777.4,1777.1,0.17588446]
[1743694809741,0.7772,1777.4,1777.2,5.62667]
[1743694809953,0.7772,1777.4,1777.3,5.62651]
[1743694810151,0.8103,1777.6,1777.3,1.125318]
[1743694810352,6.109,1777.6,1777.4,5.62614]
[1743694810571,6.109,1777.6,1777.2,5.62665]
[1743694810572,12.54501,1777.6,1777.2,5.62665]
[1743694810951,5.6259,1777.5,1777.2,6.03822787]
[1743694811140,12.54501,1777.6,1777.2,6.21411233]
[1743694811343,12.54501,1777.6,1777.2,11.84083233]
[1743694811742,0.42876074,1777.8,1777.2,11.84083233]
[1743694811743,0.8202,1777.8,1777.5,5.62557]
[1743694812049,6.109,1777.7,1777.5,5.62557]
[1743694812677,6.109,1777.7,1777.4,5.80205446]
[1743694812846,6.109,1777.7,1777.4,11.42815446]
[1743694813060,0.05,1777.9,1777.8,5.62492]